[Event "Early-Titled-Tuesday-Blitz-September-26-2023"]
[Site "Chess.com"]
[Date "2023.09.26"]
[Round "9"]
[White "Dewarfd"]
[Black "ViktoriyaTarasova"]
[Result "1/2-1/2"]
[WhiteElo "2158"]
[BlackElo "2392"]
[TimeControl "180+1"]
[EndTime "9:47:22 PDT"]
[Termination "Game drawn by repetition"]

1. d4 {[%clk 0:03:00]} 1... Nf6 {[%clk 0:02:58.5]} 2. e3 {[%clk 0:02:59.5]} 2...
d5 {[%clk 0:02:57.1]} 3. Nf3 {[%clk 0:02:59.1]} 3... e6 {[%clk 0:02:57.5]} 4.
Bd3 {[%clk 0:02:58.5]} 4... c5 {[%clk 0:02:57.8]} 5. b3 {[%clk 0:02:57.1]} 5...
Nc6 {[%clk 0:02:57.9]} 6. a3 {[%clk 0:02:56.9]} 6... Bd6 {[%clk 0:02:57.9]} 7.
Bb2 {[%clk 0:02:57.5]} 7... O-O {[%clk 0:02:57.7]} 8. O-O {[%clk 0:02:57.6]}
8... b6 {[%clk 0:02:57.7]} 9. Nbd2 {[%clk 0:02:56.5]} 9... a5 {[%clk 0:02:55]}
10. c4 {[%clk 0:02:52.5]} 10... Bb7 {[%clk 0:02:51.7]} 11. Qe2 {[%clk
0:02:52.6]} 11... Ne7 {[%clk 0:02:50.3]} 12. Rfd1 {[%clk 0:02:51.8]} 12... cxd4
{[%clk 0:02:48.8]} 13. Bxd4 {[%clk 0:02:45.9]} 13... Rc8 {[%clk 0:02:44.1]} 14.
Bxf6 {[%clk 0:02:45.1]} 14... gxf6 {[%clk 0:02:44.2]} 15. a4 {[%clk 0:02:36.9]}
15... Ng6 {[%clk 0:02:34.7]} 16. cxd5 {[%clk 0:02:34]} 16... Bxd5 {[%clk
0:02:33.8]} 17. Be4 {[%clk 0:02:26.8]} 17... Bb4 {[%clk 0:02:24.5]} 18. Bxd5
{[%clk 0:02:12.2]} 18... Qxd5 {[%clk 0:02:19.8]} 19. Nc4 {[%clk 0:02:07.8]}
19... Qc6 {[%clk 0:02:09.3]} 20. Nd4 {[%clk 0:02:07.5]} 20... Qb7 {[%clk
0:01:54.6]} 21. Qf3 {[%clk 0:01:58.3]} 21... Qxf3 {[%clk 0:01:35.6]} 22. Nxf3
{[%clk 0:01:58.9]} 22... Bc5 {[%clk 0:01:36.2]} 23. Rd7 {[%clk 0:01:55]} 23...
Rfd8 {[%clk 0:01:30.7]} 24. Rad1 {[%clk 0:01:54.1]} 24... Rxd7 {[%clk 0:01:31]}
25. Rxd7 {[%clk 0:01:54.7]} 25... Kf8 {[%clk 0:01:30.4]} 26. h4 {[%clk
0:01:53.7]} 26... Ke8 {[%clk 0:01:27.9]} 27. Rb7 {[%clk 0:01:53.4]} 27... Rc6
{[%clk 0:01:25.1]} 28. h5 {[%clk 0:01:51.3]} 28... Ne7 {[%clk 0:01:21.2]} 29.
Nd4 {[%clk 0:01:47.7]} 29... Bxd4 {[%clk 0:00:49.4]} 30. exd4 {[%clk 0:01:48.4]}
30... Nf5 {[%clk 0:00:41]} 31. Rb8+ {[%clk 0:01:21.8]} 31... Ke7 {[%clk
0:00:37.4]} 32. d5 {[%clk 0:01:17.1]} 32... exd5 {[%clk 0:00:31.3]} 33. Rxb6
{[%clk 0:01:16]} 33... Rc5 {[%clk 0:00:18.7]} 34. Ne3 {[%clk 0:01:07.7]} 34...
Nxe3 {[%clk 0:00:12]} 35. fxe3 {[%clk 0:01:08.2]} 35... Rc3 {[%clk 0:00:12.6]}
36. Kf2 {[%clk 0:01:06.1]} 36... Rc2+ {[%clk 0:00:10.7]} 37. Kf3 {[%clk
0:01:06]} 37... Rc3 {[%clk 0:00:11.1]} 38. Rb5 {[%clk 0:01:04.3]} 38... d4
{[%clk 0:00:11.3]} 39. Rxa5 {[%clk 0:00:53.3]} 39... Rxe3+ {[%clk 0:00:11.3]}
40. Kf4 {[%clk 0:00:51.4]} 40... Rxb3 {[%clk 0:00:12]} 41. Ra7+ {[%clk 0:00:49]}
41... Ke6 {[%clk 0:00:12.6]} 42. Ra6+ {[%clk 0:00:47.1]} 42... Kd5 {[%clk
0:00:13.1]} 43. Ra8 {[%clk 0:00:46.1]} 43... Rb2 {[%clk 0:00:10.9]} 44. a5
{[%clk 0:00:43.6]} 44... d3 {[%clk 0:00:10.2]} 45. Ke3 {[%clk 0:00:43.5]} 45...
Kc4 {[%clk 0:00:10]} 46. Rc8+ {[%clk 0:00:42.3]} 46... Kd5 {[%clk 0:00:06.1]}
47. Kxd3 {[%clk 0:00:41.8]} 47... Ra2 {[%clk 0:00:06.7]} 48. Ra8 {[%clk
0:00:41.4]} 48... Rxg2 {[%clk 0:00:06.3]} 49. a6 {[%clk 0:00:40.5]} 49... Rg3+
{[%clk 0:00:05.9]} 50. Ke2 {[%clk 0:00:40]} 50... Kc6 {[%clk 0:00:05.7]} 51. Rf8
{[%clk 0:00:36.2]} 51... Kb6 {[%clk 0:00:05.8]} 52. Rxf7 {[%clk 0:00:35.6]}
52... Kxa6 {[%clk 0:00:06.2]} 53. Rxf6+ {[%clk 0:00:35.7]} 53... Kb5 {[%clk
0:00:06]} 54. Rf7 {[%clk 0:00:35.3]} 54... h6 {[%clk 0:00:06.3]} 55. Rf6 {[%clk
0:00:34.9]} 55... Kc5 {[%clk 0:00:06.6]} 56. Rxh6 {[%clk 0:00:34.7]} 56... Kd5
{[%clk 0:00:07.3]} 57. Kf2 {[%clk 0:00:34.8]} 57... Rg8 {[%clk 0:00:07]} 58. Kf3
{[%clk 0:00:32.9]} 58... Ke5 {[%clk 0:00:06.9]} 59. Ra6 {[%clk 0:00:24.2]} 59...
Kf5 {[%clk 0:00:06.9]} 60. h6 {[%clk 0:00:22]} 60... Kg5 {[%clk 0:00:07.1]} 61.
Kg3 {[%clk 0:00:19.5]} 61... Rh8 {[%clk 0:00:07.4]} 62. h7 {[%clk 0:00:18.3]}
62... Kh5 {[%clk 0:00:06.6]} 63. Ra7 {[%clk 0:00:16.9]} 63... Kg6 {[%clk
0:00:06.4]} 64. Kg4 {[%clk 0:00:16.6]} 64... Rxh7 {[%clk 0:00:06.4]} 65. Ra6+
{[%clk 0:00:16]} 65... Kg7 {[%clk 0:00:06.9]} 66. Kg5 {[%clk 0:00:15.3]} 66...
Rh1 {[%clk 0:00:06.2]} 67. Ra7+ {[%clk 0:00:14.9]} 67... Kf8 {[%clk 0:00:06.5]}
68. Kf6 {[%clk 0:00:14.9]} 68... Rf1+ {[%clk 0:00:06]} 69. Kg6 {[%clk
0:00:14.9]} 69... Rg1+ {[%clk 0:00:06.4]} 70. Kf6 {[%clk 0:00:14.8]} 70... Rf1+
{[%clk 0:00:06.4]} 71. Ke6 {[%clk 0:00:14.2]} 71... Re1+ {[%clk 0:00:06]} 72.
Kf5 {[%clk 0:00:14.4]} 72... Rf1+ {[%clk 0:00:06.3]} 73. Ke4 {[%clk 0:00:14.8]}
73... Re1+ {[%clk 0:00:06.6]} 74. Kf3 {[%clk 0:00:14.9]} 74... Rf1+ {[%clk
0:00:06.9]} 75. Ke2 {[%clk 0:00:15]} 75... Rf7 {[%clk 0:00:07.2]} 76. Ra8+
{[%clk 0:00:14.7]} 76... Kg7 {[%clk 0:00:07.8]} 77. Ke3 {[%clk 0:00:14.2]} 77...
Re7+ {[%clk 0:00:08.1]} 78. Kf4 {[%clk 0:00:14.1]} 78... Rf7+ {[%clk 0:00:08.2]}
79. Kg5 {[%clk 0:00:14.2]} 79... Rb7 {[%clk 0:00:07.8]} 80. Ra5 {[%clk
0:00:13.3]} 80... Rc7 {[%clk 0:00:07.8]} 81. Rb5 {[%clk 0:00:13.2]} 81... Rd7
{[%clk 0:00:07.5]} 82. Re5 {[%clk 0:00:12.8]} 82... Ra7 {[%clk 0:00:07.7]} 83.
Rb5 {[%clk 0:00:12.9]} 83... Rc7 {[%clk 0:00:07]} 84. Ra5 {[%clk 0:00:12.4]}
84... Rd7 {[%clk 0:00:07.4]} 85. Rb5 {[%clk 0:00:12]} 85... Rc7 {[%clk
0:00:07.6]} 86. Ra5 {[%clk 0:00:11.9]} 86... Rd7 {[%clk 0:00:08.1]} 87. Rb5
{[%clk 0:00:11.4]} 87... Rc7 {[%clk 0:00:08.5]} 1/2-1/2

[Event "Early-Titled-Tuesday-Blitz-September-26-2023"]
[Site "Chess.com"]
[Date "2023.09.26"]
[Round "9"]
[White "Zhigalko_Sergei"]
[Black "rasmussvane"]
[Result "1-0"]
[WhiteElo "2855"]
[BlackElo "2990"]
[TimeControl "180+1"]
[EndTime "9:47:24 PDT"]
[Termination "Zhigalko_Sergei won by checkmate"]

1. e4 {[%clk 0:03:00.9]} 1... e5 {[%clk 0:02:51.4]} 2. Nf3 {[%clk 0:03:00.9]}
2... Nc6 {[%clk 0:02:52.1]} 3. Bb5 {[%clk 0:02:57.2]} 3... a6 {[%clk 0:02:46]}
4. Ba4 {[%clk 0:02:57.2]} 4... Nf6 {[%clk 0:02:46.4]} 5. O-O {[%clk 0:02:57.5]}
5... Be7 {[%clk 0:02:47]} 6. Re1 {[%clk 0:02:58]} 6... b5 {[%clk 0:02:47]} 7.
Bb3 {[%clk 0:02:58.5]} 7... O-O {[%clk 0:02:47.6]} 8. a4 {[%clk 0:02:55]} 8...
Rb8 {[%clk 0:02:47.8]} 9. axb5 {[%clk 0:02:51]} 9... axb5 {[%clk 0:02:48.7]} 10.
Nc3 {[%clk 0:02:47]} 10... d6 {[%clk 0:02:47.3]} 11. Nd5 {[%clk 0:02:45.5]}
11... Be6 {[%clk 0:02:40.4]} 12. d3 {[%clk 0:02:38.4]} 12... Qd7 {[%clk
0:02:22.5]} 13. h3 {[%clk 0:02:24]} 13... h6 {[%clk 0:02:22.1]} 14. c3 {[%clk
0:02:21.4]} 14... Ra8 {[%clk 0:02:17.5]} 15. Be3 {[%clk 0:02:16.4]} 15... Rfb8
{[%clk 0:02:06.8]} 16. Qd2 {[%clk 0:02:08.2]} 16... b4 {[%clk 0:01:52.7]} 17.
Nxf6+ {[%clk 0:01:47.4]} 17... Bxf6 {[%clk 0:01:49.9]} 18. Ba4 {[%clk
0:01:48.3]} 18... Qe8 {[%clk 0:00:55.5]} 19. cxb4 {[%clk 0:01:17]} 19... Bd7
{[%clk 0:00:54.5]} 20. Rec1 {[%clk 0:01:17.2]} 20... Nd8 {[%clk 0:00:43]} 21.
Bb3 {[%clk 0:01:04.3]} 21... Rxa1 {[%clk 0:00:42.1]} 22. Rxa1 {[%clk 0:01:05.2]}
22... Nc6 {[%clk 0:00:40.8]} 23. Rc1 {[%clk 0:00:46.5]} 23... Rxb4 {[%clk
0:00:33.8]} 24. Rxc6 {[%clk 0:00:37.4]} 24... Rxb3 {[%clk 0:00:32.9]} 25. Rxc7
{[%clk 0:00:38]} 25... Be6 {[%clk 0:00:17.4]} 26. Rc3 {[%clk 0:00:30.8]} 26...
Qb8 {[%clk 0:00:16.5]} 27. Rxb3 {[%clk 0:00:29.2]} 27... Qxb3 {[%clk 0:00:17.4]}
28. d4 {[%clk 0:00:28.5]} 28... Bc4 {[%clk 0:00:17.2]} 29. dxe5 {[%clk
0:00:12.7]} 29... dxe5 {[%clk 0:00:18.1]} 30. Qc3 {[%clk 0:00:09.1]} 30... Qxc3
{[%clk 0:00:12.8]} 31. bxc3 {[%clk 0:00:10]} 31... Bd3 {[%clk 0:00:11.5]} 32.
Nd2 {[%clk 0:00:08.7]} 32... Be7 {[%clk 0:00:12]} 33. f3 {[%clk 0:00:07.9]}
33... Bh4 {[%clk 0:00:12.5]} 34. Nb3 {[%clk 0:00:04.7]} 34... Bc4 {[%clk
0:00:08.9]} 35. Nd2 {[%clk 0:00:02.2]} 35... Bd3 {[%clk 0:00:09.1]} 36. c4
{[%clk 0:00:01.5]} 36... Be1 {[%clk 0:00:08]} 37. c5 {[%clk 0:00:01.3]} 37...
Bxd2 {[%clk 0:00:05.8]} 38. Bxd2 {[%clk 0:00:02.2]} 38... Bb5 {[%clk 0:00:06.3]}
39. Kf2 {[%clk 0:00:02.7]} 39... f6 {[%clk 0:00:06.7]} 40. g3 {[%clk 0:00:02.7]}
40... h5 {[%clk 0:00:04]} 41. f4 {[%clk 0:00:02.9]} 41... Kf7 {[%clk 0:00:03.8]}
42. f5 {[%clk 0:00:02.3]} 42... Bc6 {[%clk 0:00:04]} 43. Ke3 {[%clk 0:00:02.7]}
43... g6 {[%clk 0:00:04.2]} 44. g4 {[%clk 0:00:03.1]} 44... hxg4 {[%clk
0:00:04.4]} 45. hxg4 {[%clk 0:00:04]} 45... gxf5 {[%clk 0:00:04.8]} 46. exf5
{[%clk 0:00:04.5]} 46... Bd5 {[%clk 0:00:02.8]} 47. Be1 {[%clk 0:00:05.4]} 47...
Bc6 {[%clk 0:00:03]} 48. Bh4 {[%clk 0:00:06.1]} 48... Bd5 {[%clk 0:00:03.5]} 49.
g5 {[%clk 0:00:04]} 49... fxg5 {[%clk 0:00:03.6]} 50. Bxg5 {[%clk 0:00:04.9]}
50... Bc6 {[%clk 0:00:04.2]} 51. Kd2 {[%clk 0:00:05.2]} 51... Bd7 {[%clk
0:00:03.3]} 52. f6 {[%clk 0:00:05.5]} 52... Ke6 {[%clk 0:00:03.8]} 53. Kc3
{[%clk 0:00:06.4]} 53... Bc6 {[%clk 0:00:02.9]} 54. Kc4 {[%clk 0:00:07]} 54...
Bd5+ {[%clk 0:00:02.2]} 55. Kb5 {[%clk 0:00:07.2]} 55... e4 {[%clk 0:00:02.7]}
56. Kb4 {[%clk 0:00:05.4]} 56... e3 {[%clk 0:00:02.4]} 57. Kc3 {[%clk
0:00:05.8]} 57... e2 {[%clk 0:00:03]} 58. Kd2 {[%clk 0:00:06.4]} 58... Bf3
{[%clk 0:00:03.7]} 59. Bh4 {[%clk 0:00:07.3]} 59... Kf7 {[%clk 0:00:04]} 60. Ke3
{[%clk 0:00:06.9]} 60... Bc6 {[%clk 0:00:02.1]} 61. Kxe2 {[%clk 0:00:07.3]}
61... Ke6 {[%clk 0:00:02.6]} 62. Ke3 {[%clk 0:00:07.5]} 62... Be8 {[%clk
0:00:03.5]} 63. Kd4 {[%clk 0:00:07.5]} 63... Bf7 {[%clk 0:00:03.3]} 64. Bg5
{[%clk 0:00:05.1]} 64... Kd7 {[%clk 0:00:03.7]} 65. Ke5 {[%clk 0:00:05.8]} 65...
Kc6 {[%clk 0:00:04.1]} 66. Be3 {[%clk 0:00:06.7]} 66... Kd7 {[%clk 0:00:04.5]}
67. Kf5 {[%clk 0:00:06.7]} 67... Kc6 {[%clk 0:00:04]} 68. Kg5 {[%clk 0:00:07.1]}
68... Kd7 {[%clk 0:00:04.6]} 69. Kh6 {[%clk 0:00:07.7]} 69... Bd5 {[%clk
0:00:02]} 70. Kg7 {[%clk 0:00:08.6]} 70... Ke8 {[%clk 0:00:01.9]} 71. Bd4 {[%clk
0:00:08.3]} 71... Be6 {[%clk 0:00:01.1]} 72. c6 {[%clk 0:00:08.4]} 72... Bd5
{[%clk 0:00:01.7]} 73. c7 {[%clk 0:00:08.8]} 73... Kd7 {[%clk 0:00:02.4]} 74.
Be5 {[%clk 0:00:09.4]} 74... Be6 {[%clk 0:00:01]} 75. f7 {[%clk 0:00:09.6]}
75... Kc8 {[%clk 0:00:01.7]} 76. f8=Q+ {[%clk 0:00:09.7]} 76... Kb7 {[%clk
0:00:02.6]} 77. Qb8+ {[%clk 0:00:09.5]} 77... Kc6 {[%clk 0:00:03.5]} 78. Qd8
{[%clk 0:00:09.4]} 78... Bc8 {[%clk 0:00:04.4]} 79. Qxc8 {[%clk 0:00:09.3]}
79... Kd5 {[%clk 0:00:05.3]} 80. Qd7+ {[%clk 0:00:09.6]} 80... Ke4 {[%clk
0:00:06.2]} 81. Qd4+ {[%clk 0:00:09.8]} 81... Kf5 {[%clk 0:00:07.1]} 82. c8=Q+
{[%clk 0:00:09.4]} 82... Kg5 {[%clk 0:00:07.5]} 83. Qdg4# {[%clk 0:00:09.5]} 1-0

[Event "Early-Titled-Tuesday-Blitz-September-26-2023"]
[Site "Chess.com"]
[Date "2023.09.26"]
[Round "9"]
[White "Aswathchess"]
[Black "ARMQUEEN"]
[Result "1-0"]
[WhiteElo "2591"]
[BlackElo "2442"]
[TimeControl "180+1"]
[EndTime "9:47:24 PDT"]
[Termination "Aswathchess won by resignation"]

1. d4 {[%clk 0:03:00.9]} 1... Nf6 {[%clk 0:02:59]} 2. c4 {[%clk 0:02:59.1]} 2...
c6 {[%clk 0:02:58.4]} 3. g3 {[%clk 0:02:59.3]} 3... g6 {[%clk 0:02:58]} 4. Bg2
{[%clk 0:02:59]} 4... Bg7 {[%clk 0:02:58.1]} 5. Nf3 {[%clk 0:02:59.3]} 5... O-O
{[%clk 0:02:58.2]} 6. O-O {[%clk 0:02:59.9]} 6... d5 {[%clk 0:02:57.4]} 7. cxd5
{[%clk 0:03:00.1]} 7... cxd5 {[%clk 0:02:56.1]} 8. Nc3 {[%clk 0:03:01]} 8... Nc6
{[%clk 0:02:55.7]} 9. Ne5 {[%clk 0:03:01.6]} 9... Be6 {[%clk 0:02:47.2]} 10. Bf4
{[%clk 0:03:00.7]} 10... Rc8 {[%clk 0:02:41.3]} 11. Rc1 {[%clk 0:02:59.8]} 11...
Nh5 {[%clk 0:02:34.4]} 12. Nxc6 {[%clk 0:02:53.9]} 12... Rxc6 {[%clk 0:02:32.9]}
13. Bg5 {[%clk 0:02:47]} 13... h6 {[%clk 0:02:30.1]} 14. Be3 {[%clk 0:02:46.3]}
14... Nf6 {[%clk 0:02:26.7]} 15. Na4 {[%clk 0:02:41.1]} 15... Nd7 {[%clk
0:02:21.8]} 16. Rxc6 {[%clk 0:02:40.2]} 16... bxc6 {[%clk 0:02:20.2]} 17. Qc1
{[%clk 0:02:40.8]} 17... Qc7 {[%clk 0:02:15]} 18. Bxh6 {[%clk 0:02:39.7]} 18...
Rb8 {[%clk 0:02:11.5]} 19. Bf4 {[%clk 0:02:38]} 19... Qa5 {[%clk 0:02:06.8]} 20.
Bxb8 {[%clk 0:02:35.9]} 20... Nxb8 {[%clk 0:02:06.7]} 21. Nc5 {[%clk 0:02:30.3]}
21... Bg4 {[%clk 0:02:05.1]} 22. e3 {[%clk 0:02:28.8]} 22... Qxa2 {[%clk
0:02:02.2]} 23. Qa1 {[%clk 0:02:27.6]} 23... Qc4 {[%clk 0:01:45.6]} 24. Qxa7
{[%clk 0:02:26.6]} 24... Qb5 {[%clk 0:01:45.8]} 25. h3 {[%clk 0:02:20]} 25...
Bf5 {[%clk 0:01:41.9]} 26. g4 {[%clk 0:02:07.3]} 26... Bc2 {[%clk 0:01:41]} 27.
Rc1 {[%clk 0:02:06.3]} 27... Qxb2 {[%clk 0:01:36.4]} 28. Rxc2 {[%clk 0:02:06.1]}
28... Qb1+ {[%clk 0:01:33]} 29. Kh2 {[%clk 0:02:02.4]} 29... Qxc2 {[%clk
0:01:31.3]} 30. Qxb8+ {[%clk 0:02:03]} 30... Kh7 {[%clk 0:01:31.6]} 31. Qc7
{[%clk 0:01:59.6]} 31... Qxf2 {[%clk 0:01:29.8]} 32. Qxe7 {[%clk 0:01:54.5]}
32... Bh6 {[%clk 0:01:28.3]} 33. g5 {[%clk 0:01:54.2]} 33... Bg7 {[%clk
0:01:26.5]} 34. Nd3 {[%clk 0:01:53.7]} 34... Qf5 {[%clk 0:01:25.5]} 35. Ne5
{[%clk 0:01:49.7]} 35... c5 {[%clk 0:01:14.7]} 36. Nf3 {[%clk 0:01:07]} 36...
cxd4 {[%clk 0:01:11.9]} 37. exd4 {[%clk 0:00:59.8]} 37... Qf4+ {[%clk
0:00:58.6]} 38. Kh1 {[%clk 0:00:59.4]} 38... Qc1+ {[%clk 0:00:50.1]} 39. Qe1
{[%clk 0:00:59.8]} 39... Qf4 {[%clk 0:00:49.9]} 40. Qf2 {[%clk 0:00:57.4]} 40...
Qc1+ {[%clk 0:00:48.9]} 41. Kh2 {[%clk 0:00:56.4]} 41... Qf4+ {[%clk 0:00:48.8]}
42. Qg3 {[%clk 0:00:56.9]} 42... Qe3 {[%clk 0:00:47.2]} 43. Ne5 {[%clk
0:00:47.3]} 43... Qxd4 {[%clk 0:00:45.7]} 44. Nxf7 {[%clk 0:00:47.7]} 44... Kg8
{[%clk 0:00:42.8]} 45. Qf3 {[%clk 0:00:41.7]} 45... Qe4 {[%clk 0:00:36.4]} 46.
Qxe4 {[%clk 0:00:16.9]} 46... dxe4 {[%clk 0:00:35.7]} 47. Nd8 {[%clk 0:00:17.4]}
47... Be5+ {[%clk 0:00:34.2]} 48. Kg1 {[%clk 0:00:17.4]} 48... Bf4 {[%clk
0:00:33.6]} 49. Ne6 {[%clk 0:00:17.9]} 49... Be3+ {[%clk 0:00:32.5]} 50. Kf1
{[%clk 0:00:17.9]} 50... Kf7 {[%clk 0:00:32.8]} 51. Ke2 {[%clk 0:00:17.9]} 51...
Bc1 {[%clk 0:00:30.2]} 52. Kd1 {[%clk 0:00:17]} 52... Be3 {[%clk 0:00:29.1]} 53.
Ke2 {[%clk 0:00:16.6]} 53... Bc1 {[%clk 0:00:28.9]} 54. Nd4 {[%clk 0:00:15]}
54... Bxg5 {[%clk 0:00:28.5]} 55. Bxe4 {[%clk 0:00:15.6]} 55... Bf6 {[%clk
0:00:28.6]} 56. Nf3 {[%clk 0:00:15.8]} 56... Kg7 {[%clk 0:00:25.9]} 57. Kf2
{[%clk 0:00:15.7]} 57... Kh6 {[%clk 0:00:26]} 58. Kg3 {[%clk 0:00:16.1]} 58...
Be7 {[%clk 0:00:26.1]} 59. Kg4 {[%clk 0:00:16.2]} 59... Bd8 {[%clk 0:00:25.6]}
60. Ne5 {[%clk 0:00:16.2]} 60... Bf6 {[%clk 0:00:21.7]} 61. Nxg6 {[%clk
0:00:16.4]} 61... Bd4 {[%clk 0:00:20.8]} 62. Ne7 {[%clk 0:00:15.4]} 62... Bf6
{[%clk 0:00:20.9]} 63. Nf5+ {[%clk 0:00:15.6]} 63... Kg6 {[%clk 0:00:20.9]} 64.
h4 {[%clk 0:00:15.4]} 64... Kf7 {[%clk 0:00:20.6]} 65. h5 {[%clk 0:00:15.2]}
65... Be5 {[%clk 0:00:20.9]} 66. h6 {[%clk 0:00:15.5]} 66... Bf6 {[%clk
0:00:20.9]} 67. Nd6+ {[%clk 0:00:15]} 67... Kg8 {[%clk 0:00:20.3]} 68. Kf5
{[%clk 0:00:15.2]} 68... Bd4 {[%clk 0:00:20.5]} 69. Kg6 {[%clk 0:00:15.6]} 69...
Bc3 {[%clk 0:00:18.5]} 70. h7+ {[%clk 0:00:15.9]} 70... Kf8 {[%clk 0:00:18.4]}
71. Bf5 {[%clk 0:00:13.8]} 71... Ke7 {[%clk 0:00:18]} 72. Ne4 {[%clk 0:00:13.5]}
72... Be5 {[%clk 0:00:17.2]} 73. Ng5 {[%clk 0:00:13.9]} 73... Bf6 {[%clk
0:00:15.8]} 74. Nf7 {[%clk 0:00:12.9]} 74... Bd4 {[%clk 0:00:15.9]} 75. Bd3
{[%clk 0:00:12.8]} 75... Bf6 {[%clk 0:00:15.9]} 76. Nh6 {[%clk 0:00:10.5]} 76...
Bd4 {[%clk 0:00:14.1]} 77. Nf5+ {[%clk 0:00:10.4]} 1-0

[Event "Early-Titled-Tuesday-Blitz-September-26-2023"]
[Site "Chess.com"]
[Date "2023.09.26"]
[Round "9"]
[White "mapleaff"]
[Black "Bilan_Danila"]
[Result "0-1"]
[WhiteElo "2359"]
[BlackElo "2532"]
[TimeControl "180+1"]
[EndTime "9:47:29 PDT"]
[Termination "Bilan_Danila won on time"]

1. e4 {[%clk 0:03:00.9]} 1... c6 {[%clk 0:02:59.8]} 2. Nf3 {[%clk 0:03:00.5]}
2... d5 {[%clk 0:03:00]} 3. d3 {[%clk 0:03:01.4]} 3... Bg4 {[%clk 0:02:59.7]} 4.
h3 {[%clk 0:03:01.3]} 4... Bxf3 {[%clk 0:02:59.9]} 5. Qxf3 {[%clk 0:03:02.2]}
5... e6 {[%clk 0:03:00.6]} 6. Be2 {[%clk 0:03:00.6]} 6... Nd7 {[%clk 0:03:00.6]}
7. O-O {[%clk 0:03:00.3]} 7... Ngf6 {[%clk 0:03:01]} 8. c4 {[%clk 0:02:59.5]}
8... dxe4 {[%clk 0:02:57.2]} 9. dxe4 {[%clk 0:02:59.2]} 9... e5 {[%clk
0:02:52.2]} 10. Nc3 {[%clk 0:02:49.8]} 10... Bc5 {[%clk 0:02:49.2]} 11. Rd1
{[%clk 0:02:42.4]} 11... O-O {[%clk 0:02:37.6]} 12. Bg5 {[%clk 0:02:33.8]} 12...
Qc7 {[%clk 0:02:30]} 13. g3 {[%clk 0:02:25.6]} 13... Bd4 {[%clk 0:02:12.5]} 14.
h4 {[%clk 0:02:17.2]} 14... h6 {[%clk 0:02:04.9]} 15. Bd2 {[%clk 0:02:09.3]}
15... Rad8 {[%clk 0:01:58]} 16. g4 {[%clk 0:02:00.3]} 16... Nh7 {[%clk
0:01:12.5]} 17. g5 {[%clk 0:01:47.5]} 17... hxg5 {[%clk 0:01:12.5]} 18. hxg5
{[%clk 0:01:48.4]} 18... g6 {[%clk 0:01:12.7]} 19. Kg2 {[%clk 0:01:44.5]} 19...
Kg7 {[%clk 0:01:12.9]} 20. Rh1 {[%clk 0:01:42.4]} 20... Rh8 {[%clk 0:01:13.1]}
21. Rh3 {[%clk 0:01:28.7]} 21... Nc5 {[%clk 0:01:01.8]} 22. Rah1 {[%clk
0:01:26]} 22... Qe7 {[%clk 0:00:54.4]} 23. Qg3 {[%clk 0:01:12]} 23... Bxf2
{[%clk 0:00:45.7]} 24. Kxf2 {[%clk 0:00:38.1]} 24... Rxd2 {[%clk 0:00:44.9]} 25.
Qh2 {[%clk 0:00:34.7]} 25... Qxg5 {[%clk 0:00:15.2]} 26. Rxh7+ {[%clk
0:00:34.6]} 26... Rxh7 {[%clk 0:00:16.1]} 27. Qxh7+ {[%clk 0:00:34.8]} 27... Kf8
{[%clk 0:00:13.5]} 28. Qh6+ {[%clk 0:00:29.4]} 28... Qxh6 {[%clk 0:00:13.5]} 29.
Rxh6 {[%clk 0:00:30.3]} 29... Rxb2 {[%clk 0:00:13.4]} 30. Rh8+ {[%clk
0:00:30.5]} 30... Ke7 {[%clk 0:00:12.6]} 31. Rc8 {[%clk 0:00:22.8]} 31... Kd7
{[%clk 0:00:11.6]} 32. Ra8 {[%clk 0:00:20.1]} 32... a6 {[%clk 0:00:10.7]} 33.
Rf8 {[%clk 0:00:12.4]} 33... Ke7 {[%clk 0:00:09.8]} 34. Rc8 {[%clk 0:00:12.2]}
34... f5 {[%clk 0:00:09.1]} 35. Rg8 {[%clk 0:00:09]} 35... Kf6 {[%clk
0:00:08.8]} 36. Rf8+ {[%clk 0:00:07.4]} 36... Kg5 {[%clk 0:00:09.2]} 37. exf5
{[%clk 0:00:04.3]} 37... gxf5 {[%clk 0:00:10.1]} 38. Rg8+ {[%clk 0:00:04.5]}
38... Kf4 {[%clk 0:00:10.1]} 39. Ke1 {[%clk 0:00:03.5]} 39... e4 {[%clk
0:00:10.2]} 40. Nd1 {[%clk 0:00:03.1]} 40... Rxa2 {[%clk 0:00:09.3]} 41. Rf8
{[%clk 0:00:03.6]} 41... Ra3 {[%clk 0:00:04.7]} 42. Kf2 {[%clk 0:00:02.6]} 42...
b5 {[%clk 0:00:05.1]} 43. cxb5 {[%clk 0:00:02.4]} 43... axb5 {[%clk 0:00:06]}
44. Rc8 {[%clk 0:00:02]} 44... Rc3 {[%clk 0:00:05.3]} 45. Nxc3 {[%clk
0:00:02.1]} 45... b4 {[%clk 0:00:03.5]} 46. Rxc6 {[%clk 0:00:01.8]} 46... Nd7
{[%clk 0:00:04.4]} 47. Rd6 {[%clk 0:00:02]} 47... Ne5 {[%clk 0:00:05.3]} 48. Rc6
{[%clk 0:00:02.2]} 48... bxc3 {[%clk 0:00:05.7]} 49. Rxc3 {[%clk 0:00:02.3]}
49... Ng6 {[%clk 0:00:06.6]} 50. Re3 {[%clk 0:00:02.6]} 50... Ne5 {[%clk
0:00:06.1]} 51. Rh3 {[%clk 0:00:02.9]} 51... Ng6 {[%clk 0:00:05.6]} 52. Rh6
{[%clk 0:00:03]} 52... Kg5 {[%clk 0:00:05.4]} 53. Rh7 {[%clk 0:00:02.9]} 53...
Ne5 {[%clk 0:00:05.6]} 54. Rg7+ {[%clk 0:00:03.1]} 54... Kf4 {[%clk 0:00:06.2]}
55. Rg1 {[%clk 0:00:04]} 55... Nf7 {[%clk 0:00:04.1]} 56. Rf1 {[%clk 0:00:04.3]}
56... Ke5 {[%clk 0:00:04.1]} 57. Ke1 {[%clk 0:00:05.1]} 57... Nd6 {[%clk
0:00:04]} 58. Bh5 {[%clk 0:00:05.2]} 58... Nc4 {[%clk 0:00:03.6]} 59. Rg1 {[%clk
0:00:05.2]} 59... Ne3 {[%clk 0:00:02.7]} 60. Rg7 {[%clk 0:00:04.9]} 60... Kf4
{[%clk 0:00:03.3]} 61. Ke2 {[%clk 0:00:04.5]} 61... Nc2 {[%clk 0:00:02.4]} 62.
Rf7 {[%clk 0:00:04.7]} 62... Nd4+ {[%clk 0:00:03.1]} 63. Kf1 {[%clk 0:00:04.9]}
63... Ke3 {[%clk 0:00:03.1]} 64. Bg6 {[%clk 0:00:04.9]} 64... Kf4 {[%clk
0:00:03.7]} 65. Bh7 {[%clk 0:00:04.4]} 65... Ke5 {[%clk 0:00:03.9]} 66. Re7+
{[%clk 0:00:04.1]} 66... Kf4 {[%clk 0:00:04.4]} 67. Rf7 {[%clk 0:00:04.3]} 67...
Ke5 {[%clk 0:00:04.9]} 68. Kf2 {[%clk 0:00:04.8]} 68... Kf4 {[%clk 0:00:04.8]}
69. Rf8 {[%clk 0:00:03.9]} 69... Ke5 {[%clk 0:00:04.1]} 70. Kg3 {[%clk
0:00:03.9]} 70... Ne2+ {[%clk 0:00:03.9]} 71. Kh4 {[%clk 0:00:03.6]} 71... Nd4
{[%clk 0:00:03.5]} 72. Kg5 {[%clk 0:00:03.8]} 72... Nf3+ {[%clk 0:00:03.9]} 73.
Kh5 {[%clk 0:00:02.5]} 73... Kf4 {[%clk 0:00:03.6]} 74. Rxf5+ {[%clk 0:00:02.2]}
74... Ke3 {[%clk 0:00:03.7]} 75. Kg4 {[%clk 0:00:01.1]} 75... Nh2+ {[%clk
0:00:03.9]} 76. Kg3 {[%clk 0:00:01.4]} 76... Nf3 {[%clk 0:00:04.8]} 0-1